{"text_format":"1","workbook":"xlsx","n_sheets":4,"sheets":["Gewerbetreibende Betrieb ruht","Gewerbetreibende Betrieb läuft ","Freiberufler Betrieb ruht","Freiberufler Betrieb läuft"],"not_rendered":{"charts":0,"images":0,"macros":1,"external_links":0,"defined_names":5,"comments":4,"pivot_tables":0},"unopened":[],"bounds":{"document_bytes":16777216,"sheet_cells":100000,"rows_first":2000,"rows_last":500,"rows_between":2000,"halvings":0,"cell_chars":16384,"cell_head_chars":4096},"cells_cut":0,"cells_raw":0,"read":"whole","date_system":"1900"}

{"sheet":"Gewerbetreibende Betrieb ruht","index":0,"n_rows":38,"n_cols":6,"rows_kept":38,"cut":false,"hidden":false,"merged":[[29,0,32,0],[3,0,3,1],[2,0,2,1],[8,0,25,0],[0,0,0,2],[1,0,1,2],[4,0,4,2],[5,0,7,0]]}
["Berechnungsschema für die Ermittlung des Krankentagegeldbedarfs\nPersonenkreis: Gewerbetreibende - Betrieb ruht während AU\nBasis: Jahres-Umsatzerlöse"]
[]
["Versicherungsnummer"]
["Name"]
[]
["Jahres-Umsatzerlöse","Erlöse aus betrieblicher Tätigkeit\n- im Rahmen des gewöhnlichen Geschäftsverkehrs - \n(sonstige Erlöse werden nicht berücksichtigt)  \n",null,{"$f":"SUM(D9:D25)","v":0}]
[null,"zuzüglich offener Forderungen"]
[null,"Summe Jahres-Umsatzerlöse gesamt",{"$f":"SUM(C6:C7)","v":0}]
["abzüglich variabler Betriebsausgaben\n(Ausgaben, die nicht mehr anfallen, wenn der Betrieb ruht) ","Materialeinsatz bzw. Wareneinsatz (z.B. Holz zur Weiterverarbeitung)",null,{"$f":"IF(C9<>\"\",1,0)","v":0}]
[null,"Kosten der Warenabgabe (z.B.: Verpackung)",null,{"$f":"IF(C10<>\"\",1,0)","v":0}]
[null,"Telefonkosten (keine Grundgebühr)",null,0]
[null,"lfd. KFZ-Betriebskosten (z.B.: Kraftstoff)",null,0]
[null,"KFZ-Reparaturen",null,0]
[null,"Instandhaltung/Reparatur Betrieb ",null,0]
[null,"Werbe- und Reisekosten",null,0,null,"Geben Sie bitte hier Ihre vorliegenden Beträge ein!"]
[null,"Bewirtungskosten",null,0]
[null,"Geschenke, Spesen",null,0]
[null,"Zeitschriften/Bücher",null,0]
[null,"Fortbildungskosten",null,0]
[null,"Berufskleidung/Wäsche",null,0]
[null,"Dekorationsartikel",null,0]
[null,"Sonstige Kosten, wenn nicht anders spezifiziert  ",null,0]
[null,null,null,0]
[null,null,null,0]
[null,null,null,0]
[null,"oder"]
[null,"Summe variable Betriebsausgaben gesamt "]
[null,"Summe variable Betriebsausgaben gesamt ",{"$f":"SUM(C9:C27)","v":0}]
[null,"Zwischensumme",{"$f":"C8-C28","v":0}]
["abzüglich Steuerpauschale"," Prozentsatz Steuerpauschale (i.d.R. 20 %)                                                                      \n(sofern VN weniger Steuern zahlt,  ist dies durch den Steuerbescheid nachzuweisen und wird bei der Berechnung entsprechend berücksichtigt.) ",0.2]
[null,"oder"]
[null,"Eingabe absoluter Betrag der Steuern"]
[null,"Betrag Steuerpauschale",{"$f":"IF(C32<>\"\",C32,(C29*C30))","v":0}]
[null,"ergibt durchschnittliches Jahres-Nettoeinkommen",{"$f":"C29-C33","v":0}]
["durchschnittliches Jahres-Nettoeinkommen\ndividiert durch ","Anzahl der Monate (i.d.R. 12 Monate)",12]
[null,"ergibt durchschnittliches Nettoeinkommen AVB (Monatswert)",{"$f":"C34/C35","v":0}]
["durchschnittliches Jahres-Nettoeinkommen\ndividiert durch","Anzahl der Tage (i.d.R. 360 Tage)",360]
[null,"maximal versicherbares KT täglich",{"$f":"C34/C37","v":0}]

{"sheet":"Gewerbetreibende Betrieb läuft ","index":1,"n_rows":54,"n_cols":6,"rows_kept":54,"cut":false,"hidden":false,"merged":[[45,0,48,0],[29,0,40,0],[0,0,0,2],[2,0,2,1],[3,0,3,1],[8,0,25,0],[1,0,1,2],[4,0,4,2],[5,0,7,0]]}
["Berechnungsschema für die Ermittlung des Krankentagegeldbedarfs\nPersonenkreis: Gewerbetreibende - Betrieb läuft während AU weiter\nBasis: Jahres-Umsatzerlöse"]
[]
["Versicherungsnummer"]
["Name"]
[]
["Jahres-Umsatzerlöse","Erlöse aus betrieblicher Tätigkeit\n- im Rahmen des gewöhnlichen Geschäftsverkehrs - \n(sonstige Erlöse werden nicht berücksichtigt)",null,{"$f":"SUM(D9:D25)","v":0}]
[null,"zuzüglich offener Forderungen"]
[null,"Summe Jahres-Umsatzerlöse gesamt",{"$f":"SUM(C6:C7)","v":0}]
["abzüglich variabler Betriebsausgaben\n(Ausgaben, die nicht mehr anfallen, wenn der Betrieb ruht)","Materialeinsatz bzw. Wareneinsatz (z.B. Holz zur Weiterverarbeitung)",null,{"$f":"IF(C9<>\"\",1,0)","v":0}]
[null,"Kosten der Warenabgabe (z.B.: Verpackung)",null,{"$f":"IF(C10<>\"\",1,0)","v":0}]
[null,"Telefonkosten (keine Grundgebühr)",null,0]
[null,"lfd. KFZ-Betriebskosten (z.B.: Kraftstoff)",null,0]
[null,"KFZ-Reparaturen",null,0]
[null,"Instandhaltung/Reparatur Betrieb ",null,0]
[null,"Werbe- und Reisekosten",null,0,null,"Geben Sie bitte hier Ihre vorliegenden Beträge ein!"]
[null,"Bewirtungskosten",null,0]
[null,"Geschenke, Spesen",null,0]
[null,"Zeitschriften/Bücher",null,0]
[null,"Fortbildungskosten",null,0]
[null,"Berufskleidung/Wäsche",null,0]
[null,"Dekorationsartikel",null,0]
[null,"Sonstige Kosten, wenn nicht anders spezifiziert  ",null,0]
[null,null,null,0]
[null,null,null,0]
[null,null,null,0]
[null,"oder"]
[null,"Summe variable Betriebsausgaben gesamt "]
[null,"Summe variable Betriebsausgaben gesamt ",{"$f":"SUM(C9:C27)","v":0}]
[null,"Zwischensumme",{"$f":"C8-C28","v":0},{"$f":"SUM(D30:D41)","v":0}]
["abzüglich fixe Kosten","Raumkosten",null,{"$f":"IF(C30<>\"\",1,0)","v":0}]
[null,"Personalkosten",null,{"$f":"IF(C31<>\"\",1,0)","v":0}]
[null,"Versicherungsbeiträge",null,0]
[null,"Beiträge zur Berufsgenossenschaft oder ähnliches",null,0]
[null,"Leasingraten",null,0]
[null,"KFZ-Steuer",null,0]
[null,"KFZ-Versicherung",null,0,null,"Geben Sie bitte hier Ihre vorliegenden Beträge ein!"]
[null,"Garagenmiete",null,0]
[null,null,null,0]
[null,null,null,0]
[null,null,null,0]
[null,null,null,0]
[null,"oder"]
[null,"Summe fixe Betriebsausgaben gesamt "]
[null,"Summe fixe Betriebsausgaben gesamt ",{"$f":"SUM(C30:C43)","v":0}]
[null,"Zwischensumme",{"$f":"C29-C44","v":0}]
["abzüglich Steuerpauschale","Prozentsatz Steuerpauschale (i.d.R. 20 %)                                                                      \n(sofern VN weniger Steuern zahlt,  ist dies durch den Steuerbescheid nachzuweisen und wird bei der Berechnung entsprechend berücksichtigt.) ",0.2]
[null,"oder"]
[null,"Eingabe absoluter Betrag der Steuern"]
[null,"Betrag Steuerpauschale",{"$f":"IF(C48<>\"\",C48,(C45*C46))","v":0}]
[null,"ergibt durchschnittliches Jahres-Nettoeinkommen",{"$f":"C45-C49","v":0}]
["durchschnittliches Jahres-Nettoeinkommen\ndividiert durch ","Anzahl der Monate (i.d.R. 12 Monate)",12]
[null,"ergibt durchschnittliches Nettoeinkommen AVB (Monatswert)",{"$f":"C50/C51","v":0}]
["durchschnittliches Jahres-Nettoeinkommen\ndividiert durch","Anzahl der Tage (i.d.R. 360 Tage)",360]
[null,"maximal versicherbares KT täglich",{"$f":"C50/C53","v":0}]

{"sheet":"Freiberufler Betrieb ruht","index":2,"n_rows":38,"n_cols":6,"rows_kept":38,"cut":false,"hidden":false,"merged":[[29,0,32,0],[0,0,0,2],[2,0,2,1],[3,0,3,1],[9,0,25,0],[1,0,1,2],[4,0,4,2],[5,0,7,0]]}
["Berechnungsschema für die Ermittlung des Krankentagegeldbedarfs\nPersonenkreis: Freiberufler - Betrieb ruht während AU\nBasis: Jahres-Umsatzerlöse"]
[]
["Versicherungsnummer"]
["Name"]
[]
["Jahres-Umsatzerlöse","Erlöse aus betrieblicher Tätigkeit\n- im Rahmen des gewöhnlichen Geschäftsverkehrs - \n(sonstige Erlöse werden nicht berücksichtigt)",null,{"$f":"SUM(D9:D25)","v":0}]
[null,"zuzüglich offener Forderungen"]
[null,"Summe Jahres-Umsatzlöse gesamt",{"$f":"SUM(C6:C7)","v":0}]
[null,"Fremdleistung extener Dienstleister inkl. Materialkosten                                                                                                                     (z.B. Zahnlabor, bei Architekten: Statikerkosten)",null,{"$f":"IF(C9<>\"\",1,0)","v":0}]
["abzüglich variabler Betriebsausgaben                    (Ausgaben, die nicht mehr anfallen, wenn der Betrieb ruht) ","Kosten der Warenabgabe (z.B.: Verpackung)",null,{"$f":"IF(C10<>\"\",1,0)","v":0}]
[null,"Telefonkosten (keine Grundgebühr)",null,0]
[null,"lfd. KFZ-Betriebskosten (z.B.: Kraftstoff)",null,0]
[null,"KFZ-Reparaturen",null,0]
[null,"Instandhaltung/Reparatur Betrieb ",null,0,null,"Geben Sie bitte hier Ire vorliegenden Beträge ein!"]
[null,"Werbe- und Reisekosten",null,0]
[null,"Bewirtungskosten",null,0]
[null,"Geschenke, Spesen",null,0]
[null,"Zeitschriften/Bücher",null,0]
[null,"Fortbildungskosten",null,0]
[null,"Berufskleidung/Wäsche",null,0]
[null,"Dekorationsartikel",null,0]
[null,"Sonstige Kosten, wenn nicht anders spezifiziert  ",null,0]
[null,null,null,0]
[null,null,null,0]
[null,null,null,0]
[null,"oder"]
[null,"Summe variable Betriebsausgaben gesamt "]
[null,"Summe variable Betriebsausgaben gesamt ",{"$f":"SUM(C9:C27)","v":0}]
[null,"Zwischensumme",{"$f":"C8-C28","v":0}]
["abzüglich Steuerpauschale"," Prozentsatz Steuerpauschale (i.d.R. 20 %)                                                                      \n(sofern VN weniger Steuern zahlt,  ist dies durch den Steuerbescheid nachzuweisen und wird bei der Berechnung entsprechend berücksichtigt.) ",0.2]
[null,"oder"]
[null,"Eingabe absoluter Betrag der Steuern"]
[null,"Betrag Steuerpauschale",{"$f":"IF(C32<>\"\",C32,(C29*C30))","v":0}]
[null,"ergibt durchschnittliches Jahres-Nettoeinkommen",{"$f":"C29-C33","v":0}]
["durchschnittliches Jahres-Nettoeinkommen\ndividiert durch ","Anzahl der Monate (i.d.R. 12 Monate)",12]
[null,"ergibt durchschnittliches Nettoeinkommen AVB (Monatswert)",{"$f":"C34/C35","v":0}]
["durchschnittliches Jahres-Nettoeinkommen\ndividiert durch","Anzahl der Tage (i.d.R. 360 Tage)",360]
[null,"maximal versicherbares KT täglich",{"$f":"C34/C37","v":0}]

{"sheet":"Freiberufler Betrieb läuft","index":3,"n_rows":54,"n_cols":6,"rows_kept":54,"cut":false,"hidden":false,"merged":[[45,0,48,0],[0,0,0,2],[2,0,2,1],[3,0,3,1],[8,0,25,0],[29,0,40,0],[1,0,1,2],[4,0,4,2],[5,0,7,0]]}
["Berechnungsschema für die Ermittlung des Krankentagegeldbedarfs\nPersonenkreis: Freiberufler - Betrieb läuft während AU weiter\nBasis: Jahres-Umsatzerlöse"]
[]
["Versicherungsnummer"]
["Name"]
[]
["Jahres-Umsastzerlöse","Erlöse aus betrieblicher Tätigkeit\n- im Rahmen des gewöhnlichen Geschäftsverkehrs - \n(sonstige Erlöse werden nicht berücksichtigt)",null,{"$f":"SUM(D9:D25)","v":0}]
[null,"zuzüglich offener Forderungen"]
[null,"Summe Jahres-Umsatzerlöse gesamt",{"$f":"SUM(C6:C7)","v":0}]
["abzüglich variabler Betriebsausgaben\n(Ausgaben, die nicht mehr anfallen, wenn der Betrieb ruht)","Fremdleistung externer Dienstleister inkl. Materialkosten\n(z.B. Zahnlabor, bei Architekten: Statikerkosten)",null,{"$f":"IF(C9<>\"\",1,0)","v":0}]
[null,"Kosten der Warenabgabe (z.B.: Verpackung)",null,{"$f":"IF(C10<>\"\",1,0)","v":0}]
[null,"Telefonkosten (keine Grundgebühr)",null,0]
[null,"lfd. KFZ-Betriebskosten (z.B.: Kraftstoff)",null,0]
[null,"KFZ-Reparaturen",null,0]
[null,"Instandhaltung/Reparatur Betrieb ",null,0]
[null,"Werbe- und Reisekosten",null,0,null,"Geben Sie bitte hier Ihre vorliegenden Beträge ein!"]
[null,"Bewirtungskosten",null,0]
[null,"Geschenke, Spesen",null,0]
[null,"Zeitschriften/Bücher",null,0]
[null,"Fortbildungskosten",null,0]
[null,"Berufskleidung/Wäsche",null,0]
[null,"Dekorationsartikel",null,0]
[null,"Sonstige Kosten, wenn nicht anders spezifiziert  ",null,0]
[null,null,null,0]
[null,null,null,0]
[null,null,null,0]
[null,"oder"]
[null,"Summe variable Betriebsausgaben gesamt "]
[null,"Summe variable Betriebsausgaben gesamt ",{"$f":"SUM(C9:C27)","v":0}]
[null,"Zwischensumme",{"$f":"C8-C28","v":0},{"$f":"SUM(D30:D41)","v":0}]
["abzüglich fixe Kosten","Raumkosten",null,{"$f":"IF(C30<>\"\",1,0)","v":0}]
[null,"Personalkosten",null,{"$f":"IF(C31<>\"\",1,0)","v":0}]
[null,"Versicherungsbeiträge",null,0]
[null,"Beiträge zur Berufsgenossenschaft oder ähnliches",null,0]
[null,"Leasingraten",null,0]
[null,"KFZ-Steuer",null,0]
[null,"KFZ-Versicherung",null,0,null,"Geben Sie bitte hier Ihre vorliegende Beträge ein!"]
[null,"Garagenmiete",null,0]
[null,null,null,0]
[null,null,null,0]
[null,null,null,0]
[null,null,null,0]
[null,"oder"]
[null,"Summe fixe Betriebsausgaben gesamt "]
[null,"Summe fixe Betriebsausgaben gesamt ",{"$f":"SUM(C30:C43)","v":0}]
[null,"Zwischensumme",{"$f":"C29-C44","v":0}]
["abzüglich Steuerpauschale"," Prozentsatz Steuerpauschale (i.d.R. 20 %)                                                                      \n(sofern VN weniger Steuern zahlt,  ist dies durch den Steuerbescheid nachzuweisen und wird bei der Berechnung entsprechend berücksichtigt.) ",0.2]
[null,"oder"]
[null,"Eingabe absoluter Betrag der Steuern"]
[null,"Betrag Steuerpauschale",{"$f":"IF(C48<>\"\",C48,(C45*C46))","v":0}]
[null,"ergibt durchschnittliches Jahres-Nettoeinkommen",{"$f":"C45-C49","v":0}]
["durchschnittliches Jahres-Nettoeinkommen\ndividiert durch ","Anzahl der Monate (i.d.R. 12 Monate)",12]
[null,"ergibt durchschnittliches Nettoeinkommen AVB (Monatswert)",{"$f":"C50/C51","v":0}]
["durchschnittliches Jahres-Nettoeinkommen\ndividiert durch","Anzahl der Tage (i.d.R. 360 Tage)",360]
[null,"maximal versicherbares KT täglich",{"$f":"C50/C53","v":0}]